Cogmind - Beta 17 @@@ ROGUE MODE // 2026.07.13 @ 20:24:03 Player: blbr-01 Result: Destroyed by NH-N0O(E) with Barrage Gun Performance ------------- Evolutions (0) 0 Regions Visited (3) 600 Robots Destroyed (5) 25 Value Destroyed (80) 80 Prototype IDs (2) 40 Alien Tech Used (0) 0 Bonus (800) 800 TOTAL SCORE: 1545 Bonus ------- Registered with UFD 300 Met Optimus in HQ 500 Cogmind --------- Core Integrity 0/250 Matter 286/300 Energy 98/100 System Corruption 0% Temperature Cool (1) Movement Core (700) Ox13 Location -8/Scraptown Parts ------- > --- POWER (1) -------- (None) > --- PROPULSION (2) --- (None) > --- UTILITY (2) ------ High-capacity Storage Unit Structural Scanner > --- WEAPON (2) ------- (None) > --- INVENTORY (20) --- Ion Engine Light Ion Engine Wheel Compact Wheel Scrap Suit Scrap Suit Medium Battery (150) Improved Terrain Scan Processor A0-MCA's Component Scanner EM Pulse Gun Shock Rifle Medium Laser Beam Cannon CPS Tube (2) Great Axe Botcube Peak State ------------ > --- POWER ------------ Ion Engine > --- PROPULSION ------- Aluminum Leg Aluminum Leg > --- UTILITY ---------- High-capacity Storage Unit Structural Scanner > --- WEAPON ----------- Assault Rifle Assault Rifle > --- INVENTORY -------- Ion Engine Light Ion Engine Wheel Compact Wheel Scrap Suit Scrap Suit Medium Battery Improved Terrain Scan Processor A0-MCA's Component Scanner EM Pulse Gun Shock Rifle Medium Laser Beam Cannon CPS Tube Junk Cannon Great Axe Botcube [Rating: 13] Favorites ----------- Power Ion Engine Engine Ion Engine Propulsion Aluminum Leg Leg Aluminum Leg Utility Structural Scanner Device Structural Scanner Storage High-capacity Storage Unit Weapon Assault Rifle Energy Gun Medium Laser Ballistic Gun Assault Rifle Build | -11 -10 -10 -8 ------- Run | Yrd Mat Sub Scr Slots Evolved . | . . . . Power . | . . . . Propulsion . | . . . . Utility . | . . . . Weapon . | . . . . Parts Attached 10 | 7 2 . 1 Power 1 | 1 . . . Engine 1 | 1 . . . Core . | . . . . Reactor . | . . . . Propulsion 2 | 2 . . . Treads . | . . . . Leg 2 | 2 . . . Wheel . | . . . . Hover . | . . . . Flight . | . . . . Utility 3 | 1 1 . 1 Device 1 | . 1 . . Storage 2 | 1 . . 1 Processor . | . . . . Hackware . | . . . . Protection . | . . . . Artifact . | . . . . Weapon 4 | 3 1 . . Energy Gun 2 | 2 . . . Energy Cannon . | . . . . Ballistic Gun 2 | 1 1 . . Ballistic Cannon . | . . . . Launcher . | . . . . Special Weapon . | . . . . Impact Weapon . | . . . . Slashing Weapon . | . . . . Piercing Weapon . | . . . . Special Melee Weapon . | . . . . Unidentified Prototypes . | . . . . Parts Lost 5 | . . . 5 Power 1 | . . . 1 Propulsion 2 | . . . 2 Utility . | . . . . Weapon 2 | . . . 2 Highest Loss Streak 5 | . . . 5 To Critical Strikes . | . . . . Average Backups 10 | 1 5 8 10 Power 1 | . 1 2 2 Propulsion 1 | . 2 2 2 Utility 1 | . . 1 1 Weapon 4 | . 1 3 4 Tool/Special . | . . . . Unused Backups 14 | . . . 14 Power 2 | . . . 2 Propulsion 2 | . . . 2 Utility 5 | . . . 5 Weapon 4 | . . . 4 Tool/Special 1 | . . . 1 Average Slot Usage (%) 99 | . 98 100 99 Engine 13 | . 14 14 13 Leg 27 | . 28 28 27 Device 13 | . 13 14 14 Storage 14 | . 14 14 14 Ballistic Gun 27 | . 18 28 27 Peak Build Rating 13 | 6 7 7 13 Average Rating 8 | 4 6 7 8 On Entrance 5 | . 6 7 7 Avg Prop Armor Cover (%) . | . . . . Naked Turns . | . . . . Heaviest Build 50 | 14 15 15 50 Greatest Support 20 | 20 20 20 20 Greatest Overweight (x) 4 | . . . 4 Average Overweight (x) 1 | . . . 1 Largest Inventory Capacity 20 | 8 8 8 20 Average Capacity 18 | 6 8 8 19 Most Carried 20 | 4 8 8 20 Average Carried 10 | 2 6 8 11 Final Capacity 20 | 8 8 8 20 Final Carried 18 | 4 8 8 18 Class Distribution -------------------- 100% | Mutant Dominant Class ---------------- Mutant | -10/Materials Mutant | -10/Subcaves Mutant | -8/Scraptown Resources | -11 -10 -10 -8 ----------- Run | Yrd Mat Sub Scr Matter Collected 324 | 235 64 . 25 Remotely . | . . . . Salvage Created 134 | . 64 . 70 Parts 9 | . 4 . 5 Haulers Intercepted . | . . . . Recyclers Shooed . | . . . . Parts Field Recycled . | . . . . Retrieved Matter . | . . . . Parts Self-Destructed . | . . . . Prevented . | . . . . Parts Restored . | . . . . Kills | -11 -10 -10 -8 ------- Run | Yrd Mat Sub Scr Combat Hostiles Destroyed 4 | . 3 . 1 Guns 4 | . 3 . 1 Classes Destroyed 3 | . 2 . 1 Worker 1 | . 1 . . Swarmer 3 | . 3 . . Scrapper 1 | . . . 1 Best Kill Streak 4 | . 4 . 1 Combat Bots Only 3 | . 3 . 1 Max Kills in Single Turn 2 | . 2 . 1 Gunslinging . | . . . . Exploded . | . . . . Melee . | . . . . Uniques/NPCs Destroyed . | . . . . Combat | -11 -10 -10 -8 -------- Run | Yrd Mat Sub Scr Hostile Shots Fired 57 | . 14 . 43 Missed 14 | . 2 . 12 Hits 43 | . 12 . 31 Projectile 43 | . 12 . 31 Critical Strikes 4 | . . . 4 Damage Taken 787 | . 91 . 696 Core 259 | . 6 . 253 Absorbed by Shields . | . . . . Core Remaining (%) 100 | 100 . . . Volleys Fired 16 | . 8 . 8 Largest 2 | . 2 . 2 Hottest 70 | . 70 . 40 Shots Fired 29 | . 16 . 13 Gun 29 | . 16 . 13 Cannon . | . . . . Launcher . | . . . . Special . | . . . . Kinetic 21 | . 8 . 13 Thermal 8 | . 8 . . Explosive . | . . . . Electromagnetic . | . . . . Robot Hit Streak 5 | . 5 . 4 Robot Miss Streak 3 | . 2 . 3 Penetration Max . | . . . . Secondary Targets . | . . . . Shots Hit Robots 17 | . 9 . 8 Core Hits 7 | . 4 . 3 Critical Kills . | . . . . Critical Parts Destroyed . | . . . . Critical Strikes . | . . . . Melee Attacks . | . . . . Impact . | . . . . Slashing . | . . . . Piercing . | . . . . Sneak Attacks . | . . . . Combat Hostiles . | . . . . Follow-up Attacks . | . . . . Damage Inflicted 215 | . 121 . 94 Guns 215 | . 121 . 94 Cannons . | . . . . Explosions . | . . . . Melee . | . . . . Ramming . | . . . . Kinetic 155 | . 61 . 94 Thermal 60 | . 60 . . Explosive . | . . . . Electromagnetic . | . . . . Impact . | . . . . Slashing . | . . . . Piercing . | . . . . Highest Corruption . | . . . . Average Corruption . | . . . . Corruption Purged . | . . . . Corruption Blocked . | . . . . Overload Shots . | . . . . Overflow Damage . | . . . . Projectiles . | . . . . Explosions . | . . . . Melee . | . . . . Knockbacks . | . . . . Impact . | . . . . Kinetic . | . . . . Secondary . | . . . . Self-Inflicted Damage . | . . . . Shots . | . . . . Rammed . | . . . . Targets Rammed . | . . . . Kicked . | . . . . Crushed . | . . . . Highest Temperature 72 | . 72 . 30 Average Temperature 34 | . 37 . 19 Received Heat Transfer 49 | . . . 49 Siege Activations . | . . . . Martial Activations . | . . . . Shielding Activations . | . . . . Robots Disrupted . | . . . . Combat Hostiles . | . . . . Robots Corrupted . | . . . . Combat Hostiles . | . . . . Parts Fried . | . . . . Impact Corruptions . | . . . . Robots Melted . | . . . . Combat Hostiles . | . . . . Parts Melted 1 | . 1 . . Heat Transferred 185 | . 185 . . Parts Sabotaged . | . . . . Parts Stolen . | . . . . Parts Stripped . | . . . . Power Chain Reactions . | . . . . Alert | -11 -10 -10 -8 ------- Run | Yrd Mat Sub Scr Maximum Alert Level . | . . . . Low Security (%) 100 | 100 100 . . Level 1 . | . . . . Level 2 . | . . . . Level 3 . | . . . . Level 4 . | . . . . Level 5 . | . . . . High Security . | . . . . Max Security . | . . . . Peak Influence 75 | . 75 . . Initial . | . . . . Average 16 | . 20 . . Influence Increases 85 | . 85 . . Destroy 0b10 Robot/C 60 | . 60 . . Destroy 0b10 Robot/NC 5 | . 5 . . Destroy Leader 10 | . 10 . . Successful Hack 10 | . 10 . . Influence Decreases 85 | . 60 25 . Entered New Map 13 | . . 13 . Time Decay 72 | . 60 12 . Squads Dispatched . | . . . . Investigation . | . . . . Extermination . | . . . . Reinforcement . | . . . . Assault . | . . . . Garrison . | . . . . Intercept . | . . . . Searches Triggered . | . . . . Construction Impeded . | . . . . Haulers Reinforced . | . . . . Active Scanning Responses . | . . . . Cargo Convoy Interrupts . | . . . . Stealth | -11 -10 -10 -8 --------- Run | Yrd Mat Sub Scr Distress Signals . | . . . . Communications Jammed . | . . . . Distress Signals . | . . . . Times Spotted 10 | . 3 . 7 Peak Tracking Total 3 | . 3 . 3 Tactical Retreats . | . . . . Traps | -11 -10 -10 -8 ------- Run | Yrd Mat Sub Scr Traps Triggered . | . . . . Indirectly . | . . . . Trap Hack Attempts . | . . . . Triggered . | . . . . Disarmed . | . . . . Reprogrammed . | . . . . Reused . | . . . . Traps Extracted . | . . . . Installed . | . . . . Triggered . | . . . . Machines | -11 -10 -10 -8 ---------- Run | Yrd Mat Sub Scr Machines Disabled . | . . . . Max in Single Turn . | . . . . Machines Repaired . | . . . . Machines Dismantled . | . . . . Machines Sabotaged . | . . . . Overloaded Fab Kills . | . . . . Hacking | -11 -10 -10 -8 --------- Run | Yrd Mat Sub Scr Machines Accessed 12 | . 3 . 9 Terminals 2 | . 2 . . Fabricators . | . . . . Repair Stations . | . . . . Recycling Units 1 | . 1 . . Scanalyzers . | . . . . Garrison Access . | . . . . Total Hacks 75 | . 6 . 69 Successful 73 | . 4 . 69 Failed 2 | . 2 . . Catastrophic . | . . . . Database Lockouts . | . . . . Manual . | . . . . Terminals 5 | . 5 . . Fabricators . | . . . . Repair Stations . | . . . . Recycling Units 1 | . 1 . . Scanalyzers . | . . . . Garrison Access . | . . . . Terminal Hacks 72 | . 3 . 69 Record 69 | . . . 69 Prototype ID Bank 1 | . 1 . . Dispatch Records 1 | . 1 . . Reinforcement Status 1 | . 1 . . Fabricator Hacks . | . . . . Repair Station Hacks . | . . . . Recycling Unit Hacks 1 | . 1 . . Report Inventory 1 | . 1 . . Scanalyzer . | . . . . Garrison Access Hacks . | . . . . Unauthorized Hacks . | . . . . Terminals . | . . . . Fabricators . | . . . . Repair Stations . | . . . . Recycling Units . | . . . . Scanalyzers . | . . . . Garrison Access . | . . . . Data Cores Recovered . | . . . . Used . | . . . . Hacking Detections 2 | . 2 . . Full Trace Events . | . . . . Feedback Events . | . . . . Feedback Blocked . | . . . . Robot Schematics Acquired . | . . . . Robots Built . | . . . . Authchips . | . . . . Time . | . . . . Total Robot Build Rating . | . . . . Part Schematics Acquired . | . . . . Parts Built . | . . . . Authchips . | . . . . Time . | . . . . Total Part Build Rating . | . . . . Part Studies Acquired . | . . . . Parts Repaired . | . . . . Time . | . . . . Parts Recycled . | . . . . Recycled Matter . | . . . . Retrieved Matter . | . . . . Retrieved Components . | . . . . Parts Scanalyzed . | . . . . Part Schematics Acquired . | . . . . Parts Damaged . | . . . . Bothacking | -11 -10 -10 -8 ------------ Run | Yrd Mat Sub Scr Used RIF Installer . | . . . . Robots Hacked . | . . . . Non-combat . | . . . . Combat . | . . . . Robot Hacks Applied . | . . . . Relay Couplers Released . | . . . . Fabnet Peak Effective % . | . . . . Robots Rewired . | . . . . Allies Hacked . | . . . . Hacks Repelled . | . . . . Allies | -11 -10 -10 -8 -------- Run | Yrd Mat Sub Scr Total Allies . | . . . . Largest Group . | . . . . Highest-Rated Group . | . . . . Highest-Rated Ally . | . . . . Total Orders . | . . . . Ally Attacks . | . . . . Total Damage . | . . . . Kills . | . . . . Allies Corrupted . | . . . . Allies Melted 3 | . . . 3 Intel | -11 -10 -10 -8 ------- Run | Yrd Mat Sub Scr Active Infowar (turns) 4737 | . 257 59 4421 Structural 4737 | . 257 59 4421 Robot Analysis Total . | . . . . Derelict Logs Recovered 1 | . . 1 . Drone Launches . | . . . . Drone Recoveries . | . . . . Exploration | -11 -10 -10 -8 ------------- Run | Yrd Mat Sub Scr Turns Passed 4822 | 70 272 59 4421 Spaces Moved 2103 | 50 193 50 1810 Core 6 | 6 . . . Treads . | . . . . Legs 2097 | 44 193 50 1810 Wheels . | . . . . Hover . | . . . . Flight . | . . . . Fastest Speed 50 | 50 120 120 120 Average Speed 225 | 111 120 120 242 Slowest Speed 400 | 120 120 120 400 Overloaded Moves . | . . . . Propulsion Burnouts . | . . . . Robots Hopped . | . . . . Potential Cave-ins . | . . . . Cave-ins Triggered . | . . . . Exploration Rate (%) 30 | 4 35 4 79 Regions Visited 3 Branch Regions 2 Pre-discovered Areas . | . . . . Known Exits Taken . | . . . . Unknown Exits Taken 3 | 1 1 1 . Scrap Searched 4 | . . . 4 Spaces Dug . | . . . . Terrain Destroyed . | . . . . Melee . | . . . . Projectile . | . . . . AOE . | . . . . Terrain Rammed . | . . . . Walls Destroyed . | . . . . Machines Disabled . | . . . . Actions | -11 -10 -10 -8 --------- Run | Yrd Mat Sub Scr Total 2160 | 61 216 49 1834 Wait 11 | . 10 . 1 Move 2100 | 49 192 49 1810 Hop . | . . . . Pick Up 18 | 5 4 . 9 Fast Attach 6 | 5 1 . . Attach 1 | 1 . . . Detach . | . . . . Swap 3 | 1 1 . 1 Drop 2 | . . . 2 Fire 16 | . 8 . 8 Melee . | . . . . Ram . | . . . . Kick . | . . . . Crush . | . . . . Escape Stasis . | . . . . Rewire 3 | . . . 3 Trap . | . . . . Miscellaneous . | . . . . Route ------- -11/Scrapyard -10/Materials -10/Subcaves -8/Scraptown (discovered 1 exit: [*Fac]) History --------- Turn | Location | Event 9 | -11/Scrapyard | Discovered new exit (range 15) 71 | -11/Scrapyard | Entered Materials 276 | -10/Materials | Discovered new exit (range 5) 308 | -10/Materials | Build established: Mutant 343 | -10/Materials | Entered Subcaves 344 | -10/Subcaves | Approached by a straggling Scientist 345 | -10/Subcaves | Learned 2 Materials zone layouts 402 | -10/Subcaves | Scientist uncovered a shortcut to Scraptown 402 | -10/Subcaves | Entered Scraptown 1222 | -8/Scraptown | Heard Great Nut preacher, LISTEN AND RECITE! 1232 | -8/Scraptown | Discovered new exit (range 5) 1652 | -8/Scraptown | Visited SPCMW 1735 | -8/Scraptown | Visited Spacefarers 1857 | -8/Scraptown | Visited Symbiants 2133 | -8/Scraptown | Visited UFD Registry 2138 | -8/Scraptown | Registered with UFD as "Matrixtorch" 2177 | -8/Scraptown | Visited IN-MT5's Study 2383 | -8/Scraptown | Visited Cyclists 2438 | -8/Scraptown | Entered Cyclist Reading Room 2698 | -8/Scraptown | Visited Assassins FH 3075 | -8/Scraptown | Visited Comm Corps 3948 | -8/Scraptown | Visited Junk Cannon Lab 3980 | -8/Scraptown | Found Prototype Special Weapon 4137 | -8/Scraptown | Visited A0-MCA Data Center 4155 | -8/Scraptown | Given a B rating by A0-MCA 4165 | -8/Scraptown | Found A0-MCA's Component Scanner 4239 | -8/Scraptown | Visited Botcube Research 4262 | -8/Scraptown | Found Botcube 4365 | -8/Scraptown | Visited Junk Repository 4495 | -8/Scraptown | Met Optimus 4495 | -8/Scraptown | Accepted into 0bPrime 4674 | -8/Scraptown | Visited Scrap Suit Storage 4700 | -8/Scraptown | Found Scrap Suit 4704 | -8/Scraptown | Found Scrap Suit 4714 | -8/Scraptown | Civil war broke out across Scraptown 4766 | -8/Scraptown | Lost 6 allies 4783 | -8/Scraptown | Attacked by Scraptown defenders 4819 | -8/Scraptown | Core integrity fell below 50% 4821 | -8/Scraptown | Core integrity fell below 20% 4823 | -8/Scraptown | Destroyed by NH-N0O(E) with Barrage Gun Last Messages --------------- 04749_ 6M-D35(x) destroyed. 04760_ Bolt penetrates Machine. 04761_ FK-NOW(h) switches sides: "I don't know who to fight for!" 04761_ FK-NOW(h) suffers critical hit (Burn). 04763_ Bolt penetrates J3-P25(E). 04766_ FK-NOW(h) destroyed. 04781_ VW-1YN(j) switches sides. 04784_ Critical hit (Burn: +50). 04785_ VW-1YN(j) destroyed. 04789_ KQ-3VO(j): "Optimus is right, we must act now or regret it later." 04791_ NH-N0O(E): "Matrixtorch is with the other side!" 04801_ Assault Rifle destroyed. 04805_ Ion Engine destroyed. 04808_ Machine disabled. 04808_ Aluminum Leg destroyed. 04822_ Assault Rifle destroyed. 04823_ Aluminum Leg destroyed. Map ----- +----------------------------------------------------+ | ?????????????????????????????????????????????????? | | ?????????????????????????????????????????????????? | | ?????????????????????????????????????????????????? | | ?????????????????????????????????????????????????? | | ?????????????????????????????????????????????????? | | ?????????????????????????????????????????????????? | | ?????????????????????????????????????????????????? | | ??###########?????????????????????????? ????????? | | ??#############???????????????????????? ????????? | | ??##"""""""""##??????????????????????## # ??????? | | ??##"""""""""##??????????????????????## # ??????? | | ??##"""""""""##??????????????????????## ##??????? | | ??##"""""""""####""""" ""###?########## ##??????? | | ??##""" """#########"################ ##??????? | | ??##""" """###"""" ""## #[* #!!## ##??????? | | ??##""" "!"###""" ""##= # = #[!## # # #?? | | ??##"""" """###"" " ## # # ## #######?? | | ??##""" """###""" "## ## # ?? | | ??##" ### "##??? ## # ??? | | ??####### ########### ########### ##### ## ###??? | | ??####### ########### ########### ##### ## "##??? | | ???##"""" """"""""""" "" " """""" """"" % ##??? | | ???##" *%! % "##??? | | ???##" !=! =% "##?? | | ???##" %= "## | | #####" !*= @ E ## | | #####" !! ![%! E | | #"""" """"""""""""""""""" """"" "## | | #"""" """""""""""""""""""""""""""" "## " | | #"""" ""###### ################"" ## "" | | #"""" ""# ###########"" ##### | | #"""" ""# X"##??????##"" ## #" | | #"""" ""# "" "" ###????####"" ## | | #"""" ""# "" "" X"##########"!% ## | | #"""" ""# " " ########==#""= "" | | #####" "" "" !%*!%=! | | #####" "" "" ! !!%= """ | | #####" ""# " " #####"### #""! "## ! | | ""# "" "" ""##########"" "## #" | | ""# "" "" ###????####" "##### | | ""# X"##??????##"" % "##### | | ""# ###??????##"" = "##??? | | ""###### ########??????##"" ##??? | | """""""""""""""""??????"""" "## | | """""""""""""""????????"""" ## | | ??????? "## | | ?????? ## | | ?????? %"##?? | | """"#" ????? * ##??? | | "??"#" ????? ! # ?? | +----------------------------------------------------+ Best States ------------- Heat Dissipation 25 Energy Generation 10 Energy Capacity 250 Matter Stores 300 Matter Capacity 300 Sight Range 16 Terrain Scan Density 10 Evasion (%) 55 Item Schematics ----------------- None Robot Schematics ------------------ None Fabricated ------------ Nothing Repaired ---------- Nothing Studied --------- None Alien Tech Used ----------------- None Achievements -------------- Bob, First Of His Name Civilization 2243 Librarian Link The Feds Nice Directions, Buddy Challenges ------------ None Game ------ Seed WardronePhaseKinecellerator Manual? 0 Play Time 00:58:30 Cumulative 7.2 hours Start 2026.07.13 @ 11:07:05 End 2026.07.13 @ 20:24:03 Sessions 17 Manual Loads 0 Difficulty Rogue Special Mode None Game No. 10 Rogue 10 Adventurer 0 Explorer 0 Win Type - Total 0 Types 0/0/0/0/0/0/0/0/0/0 Lore% 10 Gallery% 7 Achievement% 8 Wizard Run 0 Options --------- Layout 1 ASCII 0 Keyboard 0 Movement Vi Keybinds 0 Fullscreen 1 Font 20/SmallcapsGlow Map View 56x47 Zoom Use 0% Tactical HUD 1 Map Filters NONE Filters NONE Steam 0 RUN: f4bb6ea3-ef16-49a7-ba46-5b2ce3458584